fUST/lending_fUST_20250523
["ID","MTS","AMOUNT","RATE_DAILY","PERIOD"]
[362031198,1747941039600,-516.54,0.00019452,2]
[362031199,1747941039609,-470.0,0.00019452,2]
[362031200,1747941039619,-470.0,0.00019452,2]
[362031201,1747941039627,-430.0,0.00019452,2]
[362031202,1747941039636,-430.0,0.00019452,2]
[362031203,1747941039645,-430.0,0.00019452,2]
[362031204,1747941039654,-420.19644435,0.00019452,2]
[362031205,1747941039664,-430.0,0.00019452,2]
[362031206,1747941039673,-430.0,0.00019452,2]
[362031208,1747941039683,-430.0,0.00019452,2]
[362031210,1747941039692,-430.0,0.00019452,2]
[362031211,1747941039702,-430.0,0.00019452,2]
[362031212,1747941039711,-430.0,0.00019452,2]
[362031213,1747941039720,-430.0,0.00019452,2]
[362031214,1747941039729,-470.0,0.00019452,2]
[362031216,1747941039739,-470.0,0.00019452,2]
[362031217,1747941039748,-898.78,0.00019452,2]
[362031218,1747941039758,-459.18,0.00019452,2]
[362031219,1747941039767,-470.0,0.00019452,2]
[362031220,1747941039777,-430.0,0.00019452,2]
[362031222,1747941039786,-430.0,0.00019452,2]
[362031223,1747941039796,-430.0,0.00019452,2]
[362031224,1747941039806,-470.0,0.00019452,2]
[362031225,1747941039815,-601.72,0.00019452,2]
[362031226,1747941039825,-552.99,0.00019452,2]
[362031227,1747941039834,-470.0,0.00019452,2]
[362031228,1747941039843,-1064.68,0.00019452,2]
[362031229,1747941039853,-470.0,0.00019452,2]
[362031230,1747941039863,-470.0,0.00019452,2]
[362031233,1747941040017,-513.2,0.00019452,2]
[362031234,1747941040027,-430.0,0.00019452,2]
[362031235,1747941040037,-430.0,0.00019452,2]
[362031236,1747941040047,-430.0,0.00019452,2]
[362031237,1747941040056,-500.0,0.00019473,2]
[362031238,1747941040066,-331.045207,0.00019495,2]
[362031239,1747941040075,-500.0,0.00019533,2]
[362031240,1747941040085,-500.0,0.00019533,2]
[362031241,1747941040094,-500.0,0.00019533,2]
[362031242,1747941040103,-500.0,0.00019533,2]
[362031244,1747941040112,-2612.08335712,0.00019722,3]
[362031246,1747941040121,-54196.90906125,0.00019723,2]
[362031248,1747941040130,-430.0,0.00019723,2]
[362031249,1747941040139,-430.0,0.00019723,2]
[362031250,1747941040148,-430.0,0.00019723,2]
[362031251,1747941040157,-430.0,0.00019723,2]
[362031252,1747941040167,-430.0,0.00019723,2]
[362031253,1747941040176,-430.0,0.00019723,2]
[362031254,1747941040185,-470.0,0.00019723,2]
[362031255,1747941040194,-470.0,0.00019723,2]
[362031256,1747941040203,-470.0,0.00019723,2]
[362031257,1747941040213,-430.0,0.00019723,2]
[362031258,1747941040222,-470.0,0.00019723,2]
[362031259,1747941040233,-470.0,0.00019723,2]
[362031260,1747941040245,-562.16,0.00019723,2]
[362031261,1747941040256,-470.0,0.00019723,2]
[362031262,1747941040265,-477.08,0.00019723,2]
[362031263,1747941040274,-430.0,0.00019723,2]
[362031264,1747941040283,-470.0,0.00019723,2]
[362031265,1747941040292,-470.0,0.00019723,2]
[362031266,1747941040302,-470.0,0.00019723,2]
[362031267,1747941040311,-470.0,0.00019723,2]
[362031268,1747941040320,-470.0,0.00019723,2]
[362031269,1747941040329,-250.0,0.00019723,2]
[362031270,1747941040338,-470.0,0.00019723,2]
[362031271,1747941040347,-470.0,0.00019723,2]
[362031272,1747941040356,-470.0,0.00019723,2]
[362031273,1747941040366,-470.0,0.00019723,2]
[362031274,1747941040375,-470.0,0.00019723,2]
[362031275,1747941040384,-470.0,0.00019723,2]
[362031276,1747941040393,-470.0,0.00019723,2]
[362031277,1747941040402,-470.0,0.00019723,2]
[362031278,1747941040411,-470.0,0.00019723,2]
[362031279,1747941040420,-470.0,0.00019723,2]
[362031280,1747941040429,-279.7268685,0.00019723,2]
[362031281,1747941040438,-470.0,0.00019723,2]
[362031282,1747941040447,-430.0,0.00019724,2]
[362031283,1747941040457,-450.0,0.00019724,2]
[362031284,1747941040466,-430.0,0.00019726,2]
[362031285,1747941040475,-430.0,0.00019726,2]
[362031286,1747941040484,-430.0,0.00019726,2]
[362031287,1747941040494,-430.0,0.00019726,2]
[362031288,1747941040504,-430.0,0.00019726,2]
[362031289,1747941040514,-518.26,0.00019726,2]
[362031290,1747941040523,-430.0,0.00019726,2]
[362031291,1747941040534,-430.0,0.00019726,2]
[362031292,1747941040543,-430.0,0.00019726,2]
[362031293,1747941040554,-593.31,0.00019726,2]
[362031294,1747941040563,-430.0,0.00019726,2]
[362031295,1747941040573,-430.0,0.00019726,2]
[362031296,1747941040582,-172.08,0.00019726,2]
[362031297,1747941040592,-17.92159619,0.00019726,2]
[362031298,1747941040926,-300.0,0.00019177,2]
[362031299,1747941040936,-450.0,0.00019178,2]
[362031300,1747941040946,-430.0,0.00019178,2]
[362031301,1747941040955,-532.12,0.00019452,2]
[362031302,1747941040965,-463.24840381,0.00019726,2]
[362031303,1747941040974,-430.0,0.00019726,2]
[362031304,1747941040984,-161.62526477,0.00019726,2]
[362031305,1747941040998,-1034.26,0.00019726,2]
[362031306,1747941041008,-496.96,0.00019726,2]
[362031307,1747941041017,-860.46,0.00019726,2]
[362031308,1747941041027,-490.0,0.00019726,2]
[362031309,1747941041036,-430.0,0.00019726,2]
[362031310,1747941041046,-430.0,0.00019726,2]
[362031311,1747941041055,-430.0,0.00019726,2]
[362031312,1747941041065,-430.0,0.00019726,2]
[362031313,1747941041074,-430.0,0.00019726,2]
[362031314,1747941041083,-838.72,0.00019726,2]
[362031315,1747941041093,-430.0,0.00019726,2]
[362031316,1747941041102,-1407.69,0.00019726,2]
[362031317,1747941041112,-430.0,0.00019726,2]
[362031318,1747941041121,-430.0,0.00019726,2]
[362031319,1747941041131,-430.0,0.00019726,2]
[362031320,1747941041140,-430.0,0.00019726,2]
[362031321,1747941041149,-430.0,0.00019726,2]
[362031322,1747941041159,-490.0,0.00019726,2]
[362031323,1747941041171,-516.54,0.00019726,2]
[362031324,1747941041181,-430.0,0.00019726,2]
[362031325,1747941041190,-279.99566884,0.00019726,2]
[362031326,1747941041199,-430.0,0.00019726,2]
[362031327,1747941041210,-430.0,0.00019726,2]
[362031328,1747941041219,-430.0,0.00019726,2]
[362031329,1747941041229,-430.0,0.00019726,2]
[362031330,1747941041239,-430.0,0.00019726,2]
[362031331,1747941041250,-430.0,0.00019726,2]
[362031332,1747941041259,-430.0,0.00019726,2]
[362031333,1747941041268,-430.0,0.00019726,2]
[362031334,1747941041278,-898.78,0.00019726,2]
[362031335,1747941041287,-430.0,0.00019726,2]
[362031336,1747941041296,-430.0,0.00019726,2]
[362031337,1747941041305,-430.0,0.00019726,2]
[362031338,1747941041315,-601.72,0.00019726,2]
[362031339,1747941041324,-552.99,0.00019726,2]
[362031340,1747941041334,-1064.68,0.00019726,2]
[362031341,1747941041344,-513.2,0.00019726,2]
[362031342,1747941041354,-430.0,0.00019726,2]
[362031343,1747941041365,-430.0,0.00019726,2]
[362031344,1747941041375,-430.0,0.00019726,2]
[362031345,1747941041384,-430.0,0.00019997,2]
[362031346,1747941041394,-291.46210232,0.00019997,2]
[362031347,1747941041403,-430.0,0.00019997,2]
[362031348,1747941041414,-430.0,0.00019997,2]
[362031349,1747941041423,-430.0,0.00019997,2]
[362031350,1747941041433,-430.0,0.00019997,2]
[362031351,1747941041443,-156.52,0.00019997,2]
[362031352,1747941041452,-493.56,0.00019997,2]
[362031353,1747941041462,-430.0,0.00019998,2]
[362031354,1747941041471,-2843.8,0.0002,2]
[362031355,1747941041481,-2843.8,0.0002,2]
[362031356,1747941041491,-2843.8,0.0002,2]
[362031357,1747941041502,-2843.8,0.0002,2]
[362031358,1747941041512,-2843.8,0.0002,2]
[362031359,1747941041524,-2843.8,0.0002,2]
[362031360,1747941041534,-2843.8,0.0002,2]
[362031361,1747941041544,-2843.8,0.0002,2]
[362031362,1747941041554,-2843.7,0.0002,2]
[362031363,1747941041564,-430.0,0.0002,2]
[362031364,1747941041574,-430.0,0.0002,2]
[362031365,1747941041585,-430.0,0.0002,2]
[362031366,1747941041595,-430.0,0.0002,2]
[362031367,1747941041605,-430.0,0.0002,2]
[362031368,1747941041615,-430.0,0.0002,2]
[362031369,1747941041625,-161.33939946,0.0002,2]
[362031370,1747941041634,-207.70129585,0.0002,4]
[362031371,1747941041644,-430.0,0.0002,2]
[362031372,1747941041653,-430.0,0.0002,2]
[362031373,1747941041663,-593.31,0.0002,2]
[362031374,1747941041673,-430.0,0.0002,2]
[362031375,1747941041682,-430.0,0.0002,2]
[362031376,1747941041692,-481.17,0.0002,2]
[362031377,1747941041701,-430.0,0.0002,2]
[362031378,1747941041710,-1034.26,0.0002,2]
[362031379,1747941041719,-860.46,0.0002,2]
[362031380,1747941041730,-488.25420482,0.0002,2]
[362031381,1747941041741,-430.0,0.0002,2]
[362031382,1747941041750,-430.0,0.0002,2]
[362031383,1747941041759,-430.0,0.0002,2]
[362031384,1747941041769,-838.72,0.0002,2]
[362031385,1747941041778,-430.0,0.0002,2]
[362031386,1747941041788,-430.0,0.0002,2]
[362031387,1747941041798,-1407.69,0.0002,2]
[362031388,1747941041809,-559.39391607,0.0002,2]
[362031389,1747941041819,-430.0,0.0002,2]
[362031390,1747941041829,-430.0,0.0002,2]
[362031391,1747941041839,-430.0,0.0002,2]
[362031392,1747941041850,-430.0,0.0002,2]
[362031393,1747941041860,-516.54,0.0002,2]
[362031394,1747941041870,-430.0,0.0002,2]
[362031395,1747941041880,-430.0,0.0002,2]
[362031396,1747941041889,-430.0,0.0002,2]
[362031397,1747941041898,-430.0,0.0002,2]
[362031398,1747941041909,-156.24,0.0002,2]
[362031399,1747941041918,-430.0,0.0002,2]
[362031400,1747941041928,-430.0,0.0002,2]
[362031401,1747941041938,-430.0,0.0002,2]
[362031402,1747941041948,-430.0,0.0002,2]
[362031403,1747941041958,-727178.5653,0.0002,2]
[362031404,1747941041967,-898.78,0.0002,2]
[362031405,1747941041977,-430.0,0.0002,2]
[362031406,1747941041989,-430.0,0.0002,2]
[362031407,1747941041999,-430.0,0.0002,2]
[362031408,1747941042008,-601.72,0.0002,2]
[362031409,1747941042018,-552.99,0.0002,2]
[362031410,1747941042028,-1064.68,0.0002,2]
[362031411,1747941042037,-513.2,0.0002,2]
[362031412,1747941042047,-430.0,0.0002,2]
[362031413,1747941042056,-430.0,0.0002,2]
[362031414,1747941042065,-430.0,0.0002,2]
[362031415,1747941042075,-1000.0,0.00020081,2]
[362031416,1747941042085,-206.924897,0.00020187,2]
[362031417,1747941042094,-430.0,0.00020271,2]
[362031418,1747941042104,-430.0,0.00020271,2]
[362031419,1747941042113,-430.0,0.00020271,2]
[362031420,1747941042123,-430.0,0.00020271,2]
[362031421,1747941042132,-430.0,0.00020271,2]
[362031422,1747941042142,-430.0,0.00020272,2]
[362031423,1747941042152,-430.0,0.00020273,2]
[362031424,1747941042162,-430.0,0.00020273,2]
[362031425,1747941042175,-430.0,0.00020273,2]
[362031426,1747941042184,-430.0,0.00020273,2]
[362031427,1747941042194,-193.95723733,0.00020273,2]
[362031428,1747941042203,-430.0,0.00020273,2]
[362031429,1747941042214,-430.0,0.00020273,2]
[362031430,1747941042223,-430.0,0.00020273,2]
[362031431,1747941042233,-593.31,0.00020273,2]
[362031432,1747941042245,-430.0,0.00020273,2]
[362031433,1747941042254,-430.0,0.00020273,2]
[362031434,1747941042264,-481.17,0.00020273,2]
[362031435,1747941042273,-430.0,0.00020273,2]
[362031436,1747941042283,-1034.26,0.00020273,2]
[362031437,1747941042293,-860.46,0.00020273,2]
[362031438,1747941042302,-430.0,0.00020273,2]
[362031439,1747941042311,-430.0,0.00020273,2]
[362031440,1747941042321,-430.0,0.00020273,2]
[362031441,1747941042330,-838.72,0.00020273,2]
[362031442,1747941042339,-430.0,0.00020273,2]
[362031443,1747941042349,-430.0,0.00020273,2]
[362031444,1747941042359,-1407.69,0.00020273,2]
[362031445,1747941042369,-430.0,0.00020273,2]
[362031446,1747941042378,-430.0,0.00020273,2]
[362031447,1747941042387,-430.0,0.00020273,2]
[362031448,1747941042396,-430.0,0.00020273,2]
[362031449,1747941042406,-516.54,0.00020273,2]
[362031450,1747941042415,-430.0,0.00020273,2]
[362031451,1747941042424,-430.0,0.00020273,2]
[362031452,1747941042434,-430.0,0.00020273,2]
[362031453,1747941042444,-430.0,0.00020273,2]
[362031454,1747941042454,-430.0,0.00020273,2]
[362031455,1747941042464,-430.0,0.00020273,2]
[362031456,1747941042474,-430.0,0.00020273,2]
[362031457,1747941042483,-430.0,0.00020273,2]
[362031458,1747941042494,-898.78,0.00020273,2]
[362031459,1747941042504,-430.0,0.00020273,2]
[362031460,1747941042515,-430.0,0.00020273,2]
[362031461,1747941042524,-430.0,0.00020273,2]
[362031462,1747941042534,-601.72,0.00020273,2]
[362031463,1747941042544,-552.99,0.00020273,2]
[362031464,1747941042554,-1064.68,0.00020273,2]
[362031465,1747941042564,-513.2,0.00020273,2]
[362031466,1747941042573,-430.0,0.00020273,2]
[362031467,1747941042583,-430.0,0.00020273,2]
[362031468,1747941042593,-430.0,0.00020273,2]
[362031469,1747941042603,-481.53351217,0.000203,3]
[362031470,1747941042613,-481.53351217,0.000203,3]
[362031472,1747941042622,-481.53351217,0.000203,3]
[362031473,1747941042632,-481.53351217,0.000203,3]
[362031474,1747941042641,-481.53351217,0.000203,3]
[362031475,1747941042651,-481.53351217,0.000203,3]
[362031476,1747941042660,-481.53351217,0.000203,3]
[362031477,1747941042670,-481.53351217,0.00020348,3]
[362031478,1747941042679,-5133.4095528,0.00020376,2]
[362031479,1747941042689,-420.0,0.00020391,2]
[362031480,1747941042698,-16146.54,0.00020538,3]
[362031481,1747941042708,-8073.26,0.00020538,3]
[362031482,1747941042717,-4036.64,0.00020538,3]
[362031483,1747941042727,-2018.32,0.00020538,3]
[362031485,1747941042736,-1009.16,0.00020538,3]
[362031486,1747941042746,-504.58,0.00020538,3]
[362031488,1747941042756,-430.0,0.00020545,2]
[362031491,1747941042765,-430.0,0.00020545,2]
[362031493,1747941042775,-430.0,0.00020545,2]
[362031495,1747941042785,-430.0,0.00020545,2]
[362031497,1747941042794,-430.0,0.00020545,2]
[362031499,1747941042804,-430.0,0.00020546,2]
[362031501,1747941042813,-274.24,0.00020547,2]
[362031503,1747941042823,-430.0,0.00020547,2]
[362031504,1747941042832,-430.0,0.00020547,2]
[362031505,1747941042842,-430.0,0.00020547,2]
[362031506,1747941042851,-430.0,0.00020547,2]
[362031507,1747941042860,-430.0,0.00020547,2]
[362031508,1747941042870,-430.0,0.00020547,2]
[362031509,1747941042879,-593.31,0.00020547,2]
[362031510,1747941042888,-430.0,0.00020547,2]
[362031511,1747941042898,-430.0,0.00020547,2]
[362031512,1747941042908,-481.17,0.00020547,2]
[362031513,1747941043051,-430.0,0.00020547,2]
[362031514,1747941043063,-1034.26,0.00020547,2]
[362031515,1747941043073,-860.46,0.00020547,2]
[362031516,1747941043083,-430.0,0.00020547,2]
[362031517,1747941043092,-430.0,0.00020547,2]
[362031518,1747941043102,-430.0,0.00020547,2]
[362031519,1747941043111,-838.72,0.00020547,2]
[362031520,1747941043121,-430.0,0.00020547,2]
[362031521,1747941043131,-430.0,0.00020547,2]
[362031522,1747941043140,-1407.69,0.00020547,2]
[362031523,1747941043150,-430.0,0.00020547,2]
[362031524,1747941043159,-430.0,0.00020547,2]
[362031525,1747941043172,-430.0,0.00020547,2]
[362031526,1747941043182,-486.13089053,0.00020547,2]
[362031527,1747941043192,-516.54,0.00020547,2]
[362031528,1747941043201,-430.0,0.00020547,2]
[362031529,1747941043212,-430.0,0.00020547,2]
[362031530,1747941043221,-430.0,0.00020547,2]
[362031531,1747941043230,-430.0,0.00020547,2]
[362031532,1747941043240,-430.0,0.00020547,2]
[362031533,1747941043250,-280.40054389,0.00020547,2]
[362031534,1747941043260,-430.0,0.00020547,2]
[362031535,1747941043270,-430.0,0.00020547,2]
[362031536,1747941043280,-898.78,0.00020547,2]
[362031537,1747941043289,-430.0,0.00020547,2]
[362031538,1747941043299,-430.0,0.00020547,2]
[362031539,1747941043308,-430.0,0.00020547,2]
[362031540,1747941043318,-601.72,0.00020547,2]
[362031541,1747941043328,-552.99,0.00020547,2]
[362031542,1747941043339,-1064.68,0.00020547,2]
[362031543,1747941043349,-513.2,0.00020547,2]
[362031544,1747941043359,-430.0,0.00020547,2]
[362031545,1747941043369,-430.0,0.00020547,2]
[362031546,1747941043381,-430.0,0.00020547,2]
[362031547,1747941043390,-481.53351217,0.00020555,3]
[362031548,1747941043400,-1500.0,0.00020628,2]
[362031549,1747941043409,-481.53351217,0.00020762,3]
[362031550,1747941043418,-250.0,0.000208,2]
[362031551,1747941043428,-12638.53552368,0.00020808,3]
[362031552,1747941043438,-430.0,0.00020819,2]
[362031553,1747941043447,-319.84566411,0.00020819,2]
[362031554,1747941043456,-430.0,0.00020819,2]
[362031555,1747941043466,-430.0,0.00020819,2]
[362031556,1747941043475,-430.0,0.00020819,2]
[362031557,1747941043485,-430.0,0.0002082,2]
[362031558,1747941043496,-430.0,0.00020821,2]
[362031559,1747941043506,-430.0,0.00020821,2]
[362031560,1747941043515,-490.30756838,0.00020821,2]
[362031561,1747941043526,-430.0,0.00020821,2]
[362031562,1747941043536,-430.0,0.00020821,2]
[362031563,1747941043546,-430.0,0.00020821,2]
[362031564,1747941043555,-593.31,0.00020821,2]
[362031565,1747941043565,-430.0,0.00020821,2]
[362031566,1747941043574,-430.0,0.00020821,2]
[362031567,1747941043584,-481.17,0.00020821,2]
[362031568,1747941043594,-430.0,0.00020821,2]
[362031569,1747941043603,-1034.26,0.00020821,2]
[362031570,1747941043613,-860.46,0.00020821,2]
[362031571,1747941043622,-430.0,0.00020821,2]
[362031572,1747941043631,-430.0,0.00020821,2]
[362031573,1747941043641,-430.0,0.00020821,2]
[362031574,1747941043650,-838.72,0.00020821,2]
[362031575,1747941043659,-430.0,0.00020821,2]
[362031576,1747941043668,-430.0,0.00020821,2]
[362031577,1747941043678,-1407.69,0.00020821,2]
[362031578,1747941043688,-430.0,0.00020821,2]
[362031579,1747941043697,-420.89237845,0.00020821,2]
[362031580,1747941043707,-430.0,0.00020821,2]
[362031581,1747941043716,-516.54,0.00020821,2]
[362031582,1747941043726,-244.31854735,0.00020821,2]
[362031583,1747941043735,-430.0,0.00020821,2]
[362031584,1747941043745,-430.0,0.00020821,2]
[362031585,1747941043757,-430.0,0.00020821,2]
[362031586,1747941043766,-430.0,0.00020821,2]
[362031587,1747941043776,-430.0,0.00020821,2]
[362031588,1747941043786,-430.0,0.00020821,2]
[362031589,1747941043796,-898.78,0.00020821,2]
[362031590,1747941043806,-437.09909859,0.00020821,2]
[362031591,1747941043816,-430.0,0.00020821,2]
[362031592,1747941043826,-430.0,0.00020821,2]
[362031593,1747941043835,-601.72,0.00020821,2]
[362031594,1747941043847,-552.99,0.00020821,2]
[362031595,1747941043859,-1064.68,0.00020821,2]
[362031596,1747941043869,-513.2,0.00020821,2]
[362031597,1747941043879,-430.0,0.00020821,2]
[362031599,1747941043889,-430.0,0.00020821,2]
[362031601,1747941043898,-430.0,0.00020821,2]
[362031603,1747941043908,-481.53351217,0.00020969,4]
[362031605,1747941043918,-9461.64843008,0.00021,3]
[362031641,1747941044535,-3844.32446747,0.00018985,2]
[362031643,1747941044546,-430.0,0.00019178,2]
[362031646,1747941044561,-11961.82022169,0.00021,3]
[362031832,1747941046385,-430.0,0.00019178,2]
[362031835,1747941046397,-440.96,0.00019178,2]
[362031837,1747941046408,-430.0,0.00019452,2]
[362031839,1747941046419,-440.96,0.00019452,2]
[362031841,1747941046431,-20564.08,0.00021,3]
[362034352,1747941321767,206.543569,0.00013699,2]
[362034353,1747941618179,-300.0,0.00018218,2]
[362034354,1747941618215,-211.0,0.00018218,2]
[362034392,1747942232307,-563.78529435,0.000175,2]
[362034393,1747942232317,-381.21470565,0.00017873,2]
[362034397,1747942232469,-1626.81895025,0.00017873,2]
[362034399,1747942232479,-300.0,0.00018218,2]
[362034400,1747942232489,-300.0,0.00018218,2]
[362034401,1747942232500,-24900.0,0.00018219,2]
[362034402,1747942232510,-176.9714478,0.00018229,2]
[362034403,1747942232527,-1086.78600974,0.000189,2]
[362034404,1747942232543,-515.13405472,0.00019054,2]
[362034405,1747942232559,-500.0,0.00019083,2]
[362034406,1747942232572,-165.56,0.00019168,3]
[362034407,1747942232587,-496.73,0.00019168,3]
[362034408,1747942232601,-177.7990367,0.00019177,2]
[362034409,1747942232616,-335.34376449,0.00019177,2]
[362034410,1747942232627,-221.62155387,0.00019177,2]
[362034411,1747942232639,-430.0,0.00019178,2]
[362034412,1747942232650,-430.0,0.00019178,2]
[362034413,1747942232664,-430.0,0.00019178,2]
[362034414,1747942232676,-430.0,0.00019178,2]
[362034415,1747942232689,-430.0,0.00019178,2]
[362034416,1747942232700,-256.70956453,0.00019178,2]
[362034417,1747942232713,-300.0,0.00019178,2]
[362034418,1747942232726,-430.0,0.00019178,2]
[362034419,1747942232739,-430.0,0.00019178,2]
[362034420,1747942232751,-450.0,0.00019178,2]
[362034421,1747942232764,-300.0,0.00019178,2]
[362034422,1747942232775,-265.07471083,0.00019178,2]
[362034423,1747942232787,-430.0,0.00019178,2]
[362034424,1747942232799,-430.0,0.00019178,2]
[362034425,1747942232813,-430.0,0.00019178,2]
[362034426,1747942232825,-430.0,0.00019178,2]
[362034427,1747942232840,-430.0,0.00019178,2]
[362034428,1747942232854,-430.0,0.00019178,2]
[362034429,1747942232866,-430.0,0.00019178,2]
[362034430,1747942232877,-430.0,0.00019178,2]
[362034431,1747942232890,-430.0,0.00019178,2]
[362034432,1747942232904,-430.0,0.00019178,2]
[362034433,1747942232916,-430.0,0.00019178,2]
[362034434,1747942232928,-500.0,0.00019178,2]
[362034435,1747942232940,-430.0,0.00019178,2]
[362034436,1747942232953,-430.0,0.00019178,2]
[362034437,1747942232966,-430.0,0.00019178,2]
[362034438,1747942232979,-453.54,0.00019178,2]
[362034439,1747942232990,-156.52,0.00019178,2]
[362034440,1747942233003,-430.0,0.00019178,2]
[362034441,1747942233014,-558.14251133,0.00019178,2]
[362034442,1747942233024,-450.0,0.00019178,2]
[362034443,1747942233035,-450.0,0.00019178,2]
[362034444,1747942233047,-250.0,0.00019178,2]
[362034445,1747942233060,-450.0,0.00019178,2]
[362034446,1747942233072,-430.0,0.00019178,2]
[362034447,1747942233085,-430.0,0.00019178,2]
[362034448,1747942233098,-430.0,0.00019178,2]
[362034449,1747942233111,-430.0,0.00019178,2]
[362034450,1747942233123,-430.0,0.00019178,2]
[362034451,1747942233136,-430.0,0.00019178,2]
[362034452,1747942233150,-430.0,0.00019178,2]
[362034453,1747942233164,-430.0,0.00019178,2]
[362034454,1747942233177,-430.0,0.00019178,2]
[362034455,1747942233189,-430.0,0.00019178,2]
[362034456,1747942233203,-430.0,0.00019178,2]
[362034457,1747942233215,-430.0,0.00019178,2]
[362034458,1747942233228,-430.0,0.00019178,2]
[362034459,1747942233242,-201.0028926,0.00019178,2]
[362034460,1747942233254,-430.0,0.00019178,2]
[362034461,1747942233266,-400.0,0.00019178,2]
[362034462,1747942233278,-430.0,0.00019178,2]
[362034463,1747942233289,-430.0,0.00019178,2]
[362034464,1747942233301,-430.0,0.00019178,2]
[362034465,1747942233312,-430.0,0.00019178,2]
[362034466,1747942233325,-430.0,0.00019178,2]
[362034467,1747942233337,-430.0,0.00019178,2]
[362034468,1747942233351,-430.0,0.00019178,2]
[362034469,1747942233364,-430.0,0.00019178,2]
[362034470,1747942233377,-430.0,0.00019178,2]
[362034471,1747942233391,-430.0,0.00019178,2]
[362034472,1747942233403,-430.0,0.00019178,2]
[362034473,1747942233414,-430.0,0.00019178,2]
[362034474,1747942233426,-430.0,0.00019178,2]
[362034475,1747942233438,-450.0,0.00019178,2]
[362034476,1747942233451,-430.0,0.00019178,2]
[362034477,1747942233462,-450.0,0.00019178,2]
[362034478,1747942233476,-430.0,0.00019178,2]
[362034479,1747942233492,-430.0,0.00019178,2]
[362034480,1747942233504,-430.0,0.00019178,2]
[362034481,1747942233516,-430.0,0.00019178,2]
[362034482,1747942233527,-430.0,0.00019178,2]
[362034483,1747942233540,-430.0,0.00019178,2]
[362034484,1747942233551,-430.0,0.00019178,2]
[362034485,1747942233565,-430.0,0.00019178,2]
[362034486,1747942233575,-430.0,0.00019178,2]
[362034487,1747942233587,-430.0,0.00019178,2]
[362034488,1747942233599,-430.0,0.00019178,2]
[362034489,1747942233612,-430.0,0.00019178,2]
[362034490,1747942233622,-400.0,0.00019178,2]
[362034491,1747942233635,-430.0,0.00019178,2]
[362034492,1747942233647,-251.53892968,0.00019178,2]
[362034493,1747942233662,-500.0,0.00019178,2]
[362034494,1747942233675,-430.0,0.00019178,2]
[362034495,1747942233687,-430.0,0.00019178,2]
[362034496,1747942233708,-430.0,0.00019178,2]
[362034497,1747942233727,-300.0,0.00019178,2]
[362034498,1747942233742,-430.0,0.00019178,2]
[362034499,1747942233755,-430.0,0.00019178,2]
[362034500,1747942233769,-430.0,0.00019178,2]